Cogmind - Beta 14 *** ADVENTURER MODE // 2024.09.05 @ 15:08:33 Player: LegoMDS Result: Destroyed self with Light Ion Engine chain reaction Performance ------------- Evolutions (0) 0 Regions Visited (2) 400 Robots Destroyed (12) 60 Value Destroyed (340) 340 Prototype IDs (0) 0 Alien Tech Used (0) 0 Bonus (0) 0 TOTAL SCORE: 800 Bonus ------- None Cogmind --------- Core Integrity 0/250 Matter 296/300 Energy 234/250 System Corruption 0% Temperature Cool (12) Movement Walking (120) Location -10/Mines Parts ------- > --- POWER (1) -------- Ion Engine > --- PROPULSION (2) --- Aluminum Leg Aluminum Leg > --- UTILITY (2) ------ Small Storage Unit Improved Targeting Computer > --- WEAPON (2) ------- EM Pulse Gun > --- INVENTORY (8) ---- Light Deuterium Engine Heat Sink Launcher Guidance Computer Improved Light Armor Plating Shock Absorption System Rocket Launcher Mini Grenade Launcher Datajack Peak State ------------ > --- POWER ------------ Ion Engine > --- PROPULSION ------- Aluminum Leg Aluminum Leg > --- UTILITY ---------- Small Storage Unit Improved Targeting Computer > --- WEAPON ----------- Rocket Launcher Mini Grenade Launcher > --- INVENTORY -------- Ion Engine Aluminum Leg Heat Sink EM Pulse Gun Medium Laser Assault Rifle Datajack [Rating: 10] Favorites ----------- Power Ion Engine Engine Ion Engine Propulsion Aluminum Leg Leg Aluminum Leg Utility Small Storage Unit Storage Small Storage Unit Processor Improved Targeting Computer Weapon Assault Rifle Energy Gun Medium Laser Ballistic Gun Assault Rifle Launcher Rocket Launcher Build | -11 -10 -10 ------- Run | Yrd Mat Min Slots Evolved . | . . . Power . | . . . Propulsion . | . . . Utility . | . . . Weapon . | . . . Parts Attached 14 | 6 1 7 Power 2 | 1 . 1 Engine 2 | 1 . 1 Core . | . . . Reactor . | . . . Propulsion 3 | 2 . 1 Treads . | . . . Leg 3 | 2 . 1 Wheel . | . . . Hover . | . . . Flight . | . . . Utility 2 | 1 1 . Device . | . . . Storage 1 | 1 . . Processor 1 | . 1 . Hackware . | . . . Protection . | . . . Artifact . | . . . Weapon 7 | 2 . 5 Energy Gun 3 | 1 . 2 Energy Cannon . | . . . Ballistic Gun 2 | 1 . 1 Ballistic Cannon . | . . . Launcher 2 | . . 2 Special Weapon . | . . . Impact Weapon . | . . . Slashing Weapon . | . . . Piercing Weapon . | . . . Special Melee Weapon . | . . . Unidentified Prototypes . | . . . Parts Lost 3 | . . 3 Power 1 | . . 1 Propulsion 1 | . . 1 Utility . | . . . Weapon 1 | . . 1 Highest Loss Streak 2 | . . 2 To Critical Strikes . | . . . Average Slot Usage (%) 88 | . 87 95 Engine 13 | . 14 13 Leg 27 | . 28 26 Storage 14 | . 14 14 Processor 4 | . 2 14 Energy Gun 13 | . 14 9 Ballistic Gun 13 | . 14 8 Launcher 1 | . . 7 Peak Build Rating 10 | 6 8 10 Average Rating 6 | 4 6 9 On Entrance 4 | . 6 8 Naked Turns . | . . . Heaviest Build 16 | 14 14 16 Greatest Support 20 | 20 20 20 Greatest Overweight (x) . | . . . Average Overweight (x) . | . . . Largest Inventory Capacity 8 | 8 8 8 Average Capacity 7 | 6 8 8 Most Carried 8 | 3 7 8 Average Carried 5 | 1 4 7 Final Capacity 8 | 8 8 8 Final Carried 8 | 2 7 8 Class Distribution -------------------- 100% | Mutant Dominant Class ---------------- Mutant | -10/Materials Mutant | -10/Mines Resources | -11 -10 -10 ----------- Run | Yrd Mat Min Matter Collected 515 | 172 152 191 Remotely . | . . . Salvage Created 433 | . 212 221 Parts 21 | . 9 12 Haulers Intercepted . | . . . Recyclers Shooed . | . . . Parts Field Recycled . | . . . Retrieved Matter . | . . . Parts Self-Destructed . | . . . Prevented . | . . . Kills | -11 -10 -10 ------- Run | Yrd Mat Min Combat Hostiles Destroyed 26 | . 4 22 Guns 8 | . 4 4 AOE 18 | . . 18 Classes Destroyed 5 | . 2 3 Watcher 2 | . 2 . Swarmer 4 | . . 4 Grunt 4 | . 4 . Demolisher 2 | . . 2 Assembled 16 | . . 16 Best Kill Streak 16 | . 2 16 Combat Bots Only 16 | . 2 16 Max Kills in Single Turn 4 | . 1 4 Gunslinging . | . . . Exploded 4 | . . 4 Melee . | . . . Uniques/NPCs Destroyed . | . . . Combat | -11 -10 -10 -------- Run | Yrd Mat Min Hostile Shots Fired 62 | . 21 41 Missed 12 | . 4 8 Damage Taken 718 | . 207 511 Core 256 | . 38 218 Absorbed by Shields . | . . . Ignored by Resistances 204 | . 60 144 Core Remaining (%) 100 | 100 . . Volleys Fired 39 | . 18 21 Largest 2 | . 2 2 Hottest 70 | . 70 70 Shots Fired 71 | . 36 35 Gun 61 | . 36 25 Cannon . | . . . Launcher 10 | . . 10 Special . | . . . Kinetic 29 | . 18 11 Thermal 24 | . 18 6 Explosive 10 | . . 10 Electromagnetic 8 | . . 8 Robot Hit Streak 12 | . 12 12 Robot Miss Streak 2 | . 2 1 Penetration Max . | . . . Secondary Targets . | . . . Shots Hit Robots 53 | . 28 25 Core Hits 50 | . 11 39 Critical Kills 2 | . 1 1 Critical Parts Destroyed . | . . . Critical Strikes 4 | . 2 2 Burn 2 | . 1 1 Destroy 2 | . 1 1 Melee Attacks . | . . . Impact . | . . . Slashing . | . . . Piercing . | . . . Sneak Attacks . | . . . Combat Hostiles . | . . . Follow-up Attacks . | . . . Damage Inflicted 1484 | . 355 1129 Guns 581 | . 355 226 Cannons . | . . . Explosions 903 | . . 903 Melee . | . . . Ramming . | . . . Kinetic 282 | . 193 89 Thermal 279 | . 162 117 Explosive 860 | . . 860 Electromagnetic 63 | . . 63 Impact . | . . . Slashing . | . . . Piercing . | . . . Highest Corruption . | . . . Average Corruption . | . . . Corruption Purged . | . . . Corruption Blocked . | . . . Overload Shots . | . . . Overflow Damage . | . . . Projectiles . | . . . Explosions . | . . . Melee . | . . . Knockbacks . | . . . Impact . | . . . Kinetic . | . . . Secondary . | . . . Self-Inflicted Damage 21 | . . 21 Shots 1 | . . 1 Rammed . | . . . Targets Rammed . | . . . Kicked . | . . . Crushed . | . . . Highest Temperature 162 | . 162 12 Average Temperature 62 | . 79 4 Received Heat Transfer 191 | . 171 20 Siege Activations . | . . . Robots Corrupted . | . . . Combat Hostiles . | . . . Parts Fried . | . . . Impact Corruptions . | . . . Robots Melted . | . . . Combat Hostiles . | . . . Parts Melted 3 | . 1 2 Heat Transferred 851 | . 555 296 Parts Sabotaged . | . . . Parts Stolen . | . . . Parts Stripped . | . . . Power Chain Reactions 1 | . . 1 Alert | -11 -10 -10 ------- Run | Yrd Mat Min Peak Influence 164 | . 113 164 Initial 16 | . . 16 Average 68 | . 69 89 Maximum Alert Level . | . . . Low Security (%) 100 | 100 100 100 Level 1 . | . . . Level 2 . | . . . Level 3 . | . . . Level 4 . | . . . Level 5 . | . . . High Security . | . . . Max Security . | . . . Squads Dispatched . | . . . Investigation . | . . . Extermination . | . . . Reinforcement . | . . . Assault . | . . . Garrison . | . . . Intercept . | . . . Searches Triggered . | . . . Construction Impeded . | . . . Haulers Reinforced . | . . . Active Scanning Responses . | . . . Cargo Convoy Interrupts . | . . . Stealth | -11 -10 -10 --------- Run | Yrd Mat Min Distress Signals . | . . . Communications Jammed . | . . . Distress Signals . | . . . Times Spotted 33 | . 6 27 Peak Tracking Total 20 | . 2 20 Tactical Retreats 2 | . . 2 Traps | -11 -10 -10 ------- Run | Yrd Mat Min Traps Triggered . | . . . Indirectly . | . . . Trap Hack Attempts . | . . . Triggered . | . . . Disarmed . | . . . Reprogrammed . | . . . Reused . | . . . Traps Extracted . | . . . Installed . | . . . Triggered . | . . . Machines | -11 -10 -10 ---------- Run | Yrd Mat Min Machines Disabled . | . . . Max in Single Turn . | . . . Machines Repaired . | . . . Machines Dismantled . | . . . Machines Sabotaged . | . . . Overloaded Fab Kills . | . . . Hacking | -11 -10 -10 --------- Run | Yrd Mat Min Machines Accessed 2 | . 2 . Terminals 2 | . 2 . Fabricators . | . . . Repair Stations . | . . . Recycling Units . | . . . Scanalyzers . | . . . Garrison Access . | . . . Total Hacks 4 | . 4 . Successful 2 | . 2 . Failed 2 | . 2 . Catastrophic . | . . . Database Lockouts . | . . . Manual . | . . . Terminals 4 | . 4 . Fabricators . | . . . Repair Stations . | . . . Recycling Units . | . . . Scanalyzers . | . . . Garrison Access . | . . . Terminal Hacks 2 | . 2 . Branch Access Points 1 | . 1 . Hauler Manifests 1 | . 1 . Fabricator Hacks . | . . . Repair Station Hacks . | . . . Recycling Unit Hacks . | . . . Scanalyzer . | . . . Garrison Access Hacks . | . . . Unauthorized Hacks . | . . . Terminals . | . . . Fabricators . | . . . Repair Stations . | . . . Recycling Units . | . . . Scanalyzers . | . . . Garrison Access . | . . . Data Cores Recovered . | . . . Used . | . . . Hacking Detections 1 | . 1 . Full Trace Events . | . . . Feedback Events . | . . . Feedback Blocked . | . . . Robot Schematics Acquired . | . . . Robots Built . | . . . Authchips . | . . . Time . | . . . Total Robot Build Rating . | . . . Part Schematics Acquired . | . . . Parts Built . | . . . Authchips . | . . . Time . | . . . Total Part Build Rating . | . . . Parts Repaired . | . . . Time . | . . . Parts Recycled . | . . . Recycled Matter . | . . . Retrieved Matter . | . . . Retrieved Components . | . . . Parts Scanalyzed . | . . . Part Schematics Acquired . | . . . Parts Damaged . | . . . Bothacking | -11 -10 -10 ------------ Run | Yrd Mat Min Used RIF Installer . | . . . Robots Hacked . | . . . Non-combat . | . . . Combat . | . . . Robot Hacks Applied . | . . . Relay Couplers Released . | . . . Fabnet Peak Effective % . | . . . Robots Rewired . | . . . Allies Hacked . | . . . Hacks Repelled . | . . . Allies | -11 -10 -10 -------- Run | Yrd Mat Min Total Allies . | . . . Largest Group . | . . . Highest-Rated Group . | . . . Highest-Rated Ally . | . . . Total Orders . | . . . Ally Attacks . | . . . Total Damage . | . . . Kills . | . . . Allies Corrupted . | . . . Allies Melted . | . . . Intel | -11 -10 -10 ------- Run | Yrd Mat Min Robot Analysis Total . | . . . Derelict Logs Recovered . | . . . Drone Launches . | . . . Drone Recoveries . | . . . Exploration | -11 -10 -10 ------------- Run | Yrd Mat Min Turns Passed 912 | 59 695 158 Spaces Moved 635 | 42 518 75 Core 6 | 6 . . Treads . | . . . Legs 629 | 36 518 75 Wheels . | . . . Hover . | . . . Flight . | . . . Fastest Speed 50 | 50 120 120 Average Speed 119 | 110 120 120 Slowest Speed 120 | 120 120 120 Overloaded Moves . | . . . Propulsion Burnouts . | . . . Robots Hopped . | . . . Cave-ins Triggered . | . . . Exploration Rate (%) 37 | 3 79 29 Regions Visited 2 Branch Regions 1 Pre-discovered Areas . | . . . Known Exits Taken 1 | . 1 . Unknown Exits Taken 1 | 1 . . Scrap Searched . | . . . Spaces Dug . | . . . Terrain Destroyed 82 | . . 82 Melee . | . . . Projectile . | . . . AOE 82 | . . 82 Terrain Rammed . | . . . Walls Destroyed . | . . . Machines Disabled . | . . . Actions | -11 -10 -10 --------- Run | Yrd Mat Min Total 719 | 55 556 108 Wait 12 | . 12 . Move 633 | 41 517 75 Hop . | . . . Pick Up 19 | 8 7 4 Fast Attach . | . . . Attach 10 | 6 1 3 Detach . | . . . Swap 4 | . . 4 Drop 2 | . 1 1 Fire 39 | . 18 21 Melee . | . . . Ram . | . . . Kick . | . . . Crush . | . . . Escape Stasis . | . . . Rewire . | . . . Trap . | . . . Miscellaneous . | . . . Route ------- -11/Scrapyard -10/Materials (discovered 3 exits: [*Mat x2] / *Min) -10/Mines (discovered 1 exit: [*Mat]) History --------- Turn | Location | Event 23 | -11/Scrapyard | Discovered new exit (range 16) 60 | -11/Scrapyard | Entered Materials 108 | -10/Materials | Discovered new exit (range 15) 190 | -10/Materials | Discovered new exit (range 7) 308 | -10/Materials | Build established: Mutant 591 | -10/Materials | Identified exit to Mines 600 | -10/Materials | Discovered new exit (range 16) 755 | -10/Materials | Entered Mines 756 | -10/Mines | Assembled infested the area 761 | -10/Mines | Assisted by a Guerilla fighting off Assembled 797 | -10/Mines | Destroyed 16 combat bots 821 | -10/Mines | Core integrity fell below 50% 827 | -10/Mines | Core integrity fell below 20% 888 | -10/Mines | Discovered new exit (range 9) 913 | -10/Mines | Destroyed self with Light Ion Engine chain reaction Last Messages --------------- The unstable cave ceiling collapses. U-05 Engineer builds a Wall. Acquired 66 matter. U-05 Engineer builds a Wall. U-05 Engineer lays Concrete. Dropped Med. Laser. U-05 Engineer builds a Wall. Acquired Launcher Guidance Computer. R-06 Scavenger collects Lgt. Deuterium Engine. Acquired 10 matter. U-05 Engineer lays Concrete. U-05 Engineer builds a Wall. R-06 Scavenger collects Mni. Grenade Launcher. U-05 Engineer lays Concrete. EXIT=FOUND S-10 Pest destroyed. Assault Rifle destroyed. S-10 Pest destroyed. Chain reaction triggered in Lgt. Ion Engine. S-10 Pest destroyed. Map ----- +----------------------------------------------------+ | ???????????????????????????????????#????????? | | ??????????????????????????????????? ?? ?????? | | ???????????????????????????????### #? ??????? | | ??????????????????????????????# # ## ??????? | | ??????????#??????????????????? ???????? | | ??????????# ?????????????????? ????????? | | ??????????? ###??????????????? #????????? | | ???????????? #??????????????? #????????? | | ????????????# #??###?????????? #?????????? | | ?????????#### #### ######???## #??????????? | | #####???## # # ##?## #??????????? | | ##### ### #??????????? | | ## %## ##?????????? | | # % ##????????? | | " #????????? | | ##### ## "## #????????? | | ## #??# ### ##????????? | | ### ## #??## ###?## ###?????????? | | # # #???## # #####????#####???????????? | | # ## ##???#######???????###??????????????? | | = ##???????????????# ##??##?????????? | | ## ######????????## ## ##????????? | | ## #????????# #????????? | | # ### ########## #????????? | | [ ##?#### ## #????????? | | %" #?????# ######## ###=@ #?????????? | | " #?????# #??????# #?#% #?????????? | | #?????# #??????# =[% ##?????????? | | #?????# #??????# ### ##??????????? | | ##????? #??????#*#?## ##???????????? | | #??????###??????#%#??## #????????????? | | #??????????????? [ ????# #????????????? | | ##??????????????? ????? #????????????? | | ###???????????????? < ????? ##????????????? | | ??????????????????? ????? #?????????????? | | ??????????????????? ????? ?????????????? | | ???????????????????###?????? ????????????? | | ???????????????????????????? ????????????? | | ???????????????????????????? ????????????? | | ?????????????????????????????#??????????????? | | ????????????????????????????????????????????? | | ????????????????????????????????????????????? | | ????????????????????????????????????????????? | | ????????????????????????????????????????????? | | ????????????????????????????????????????????? | | ????????????????????????????????????????????? | | ????????????????????????????????????????????? | | ????????????????????????????????????????????? | | ????????????????????????????????????????????? | | ????????????????????????????????????????????? | +----------------------------------------------------+ Best States ------------- Heat Dissipation 25 Energy Generation 10 Energy Capacity 250 Matter Stores 300 Matter Capacity 300 Sight Range 16 Terrain Scan Density 10 Resistance: KI 20 Resistance: TH 20 Resistance: EX 20 Resistance: EM 20 Resistance: I 20 Resistance: S 20 Resistance: P 20 Evasion (%) 55 Targeting Accuracy 6 Offensive Hacking 10 Item Schematics ----------------- None Robot Schematics ------------------ None Fabricated ------------ Nothing Alien Tech Used ----------------- None Achievements -------------- None Challenges ------------ None Game ------ Seed GravmagPiercingBoomstick Manual? 0 Play Time 00:08:16 Cumulative 58.0 hours Start 2024.09.05 @ 15:02:05 End 2024.09.05 @ 15:08:33 Sessions 1 Manual Loads 0 Difficulty Adventurer Special Mode None Game No. 71 Rogue 13 Adventurer 58 Explorer 0 Win Type - Total 0 Types 0/0/0/0/0/0/0/0/0 Lore% 44 Gallery% 49 Achievement% 41 Wizard Run 0 Options --------- Layout 1 ASCII 0 Keyboard 0 Movement Mouse Keybinds 0 Fullscreen 1 Font 24/Smallcaps Map View 50x35 Zoom Use 0% Tactical HUD 0 Map Filters NONE Filters NONE Steam 1 RUN: ba9fbc93-f099-4c54-80cd-9353195196b7